Cogmind - Beta 9.6 @@@ ROGUE MODE // 2020.05.11 @ 11:35:03 Player: ok-primus Result: Destroyed by S-10 Pest with Light Assault Rifle Performance ------------- Evolutions (2) 1000 Regions Visited (5) 1000 Robots Destroyed (53) 265 Value Destroyed (1132) 1132 Prototype IDs (1) 20 Alien Tech Used (0) 0 Bonus (37) 37 TOTAL SCORE: 3454 Bonus ------- High Alert Combat Kills 37 Cogmind --------- Core Integrity 0/550 Matter 257/400 Energy 67/100 System Corruption 0% Temperature Cool (0) Movement Core (300) Ox5 Location -8/Storage Parts ------- > --- POWER (1) -------- (None) > --- PROPULSION (3) --- (None) > --- UTILITY (3) ------ Large Storage Unit Medium Matter Pod > --- WEAPON (4) ------- (None) > --- INVENTORY (10) --- Light Treads Drone Bay (1/2) Mini Grenade Launcher Mini Grenade Launcher Improved Datajack Improved Datajack Heavy Hammer Peak State ------------ > --- POWER ------------ Nuclear Core > --- PROPULSION ------- Light Treads Light Treads Improved Treads > --- UTILITY ---------- Improved Heat Sink Large Storage Unit Advanced Weight Redist. System > --- WEAPON ----------- Rocket Launcher Mini Grenade Launcher Mini Grenade Launcher Great Maul > --- INVENTORY -------- Heavy Ion Engine Nuclear Core Light Treads Wheel EM Shotgun EM Shotgun Improved Datajack Improved Datajack Heavy Hammer [Rating: 25] Favorites ----------- Power Ion Engine Engine Ion Engine Power Core Nuclear Core Propulsion Light Treads Treads Light Treads Leg Aluminum Leg Wheel Wheel Utility Large Storage Unit Device Improved Heat Sink Storage Large Storage Unit Protection Light Armor Plating Weapon Rocket Launcher Energy Gun EM Shotgun Ballistic Gun Heavy Assault Rifle Launcher Rocket Launcher Impact Weapon Great Maul Special Melee Weapon Improved Datajack Build | -11 -10 -10 -9 -8 -8 ------- Run | Scr Mat Min Mat Mat Sto Slots Evolved 4 | . . . 2 2 . Power . | . . . . . . Propulsion 1 | . . . 1 . . Utility 1 | . . . . 1 . Weapon 2 | . . . 1 1 . Parts Attached 59 | 6 6 2 22 13 10 Power 7 | 1 1 . 2 1 2 Engine 5 | 1 1 . 2 . 1 Core 2 | . . . . 1 1 Reactor . | . . . . . . Propulsion 14 | 2 2 . 5 2 3 Treads 7 | . . . 3 2 2 Leg 4 | . 2 . 2 . . Wheel 3 | 2 . . . . 1 Hover . | . . . . . . Flight . | . . . . . . Utility 10 | . 1 . 3 2 4 Device 6 | . . . 2 1 3 Storage 2 | . 1 . . . 1 Processor . | . . . . . . Hackware . | . . . . . . Protection 2 | . . . 1 1 . Artifact . | . . . . . . Weapon 28 | 3 2 2 12 8 1 Energy Gun 3 | . 1 . . 2 . Energy Cannon . | . . . . . . Ballistic Gun 12 | 3 1 1 4 2 1 Ballistic Cannon . | . . . . . . Launcher 5 | . . 1 2 2 . Special Weapon . | . . . . . . Impact Weapon 4 | . . . 3 1 . Slashing Weapon . | . . . . . . Piercing Weapon . | . . . . . . Special Melee Weapon 4 | . . . 3 1 . Unidentified Prototypes 1 | . . . 1 . . Parts Lost 25 | . 4 1 2 4 14 Power 4 | . 1 . . . 3 Propulsion 8 | . 2 . . 1 5 Utility 4 | . . . 1 1 2 Weapon 9 | . 1 1 1 2 4 Highest Loss Streak 11 | . 4 1 1 3 11 Average Slot Usage (%) 89 | . 62 84 96 94 84 Engine 8 | . 9 14 11 3 . Core 2 | . . . . 5 6 Treads 17 | . . . 22 27 22 Leg 10 | . 14 28 10 . . Device 4 | . . . 1 11 8 Storage 11 | . 4 14 11 9 16 Protection 3 | . . . 8 2 . Energy Gun 4 | . 6 5 . 5 13 Ballistic Gun 12 | . 18 13 15 6 7 Launcher 6 | . . 8 6 14 . Impact Weapon 5 | . . . 7 8 8 Naked Turns . | . . . . . . Heaviest Build 41 | 6 25 27 38 41 39 Greatest Support 72 | 20 20 20 63 72 60 Greatest Overweight (x) 9 | . 1 1 1 . 9 Average Overweight (x) . | . . 1 . . . Largest Inventory Capacity 10 | 4 10 10 10 10 10 Average Capacity 9 | 4 5 10 10 10 10 Most Carried 10 | 3 7 9 10 10 10 Average Carried 8 | 2 3 7 9 9 9 Final Capacity 10 | 4 10 10 10 10 10 Final Carried 10 | 3 7 7 10 10 7 Class Distribution -------------------- 45% | Mutant 44% | Scavenger-Mutant 9% | Scavenger-Bomber Dominant Class ---------------- Mutant | -10/Materials Mutant | -10/Mines Mutant | -9/Materials Scavenger-Mutant | -8/Materials Scavenger-Bomber | -8/Storage Resources | -11 -10 -10 -9 -8 -8 ----------- Run | Scr Mat Min Mat Mat Sto Matter Collected 1156 | 272 84 70 350 176 204 Remotely . | . . . . . . Salvage Created 1189 | 34 263 44 469 200 179 Parts 96 | 2 13 14 43 17 7 Haulers Intercepted 1 | . . . 1 . . Recyclers Shooed 3 | . 3 . . . . Parts Field Recycled . | . . . . . . Retrieved Matter . | . . . . . . Parts Self-Destructed . | . . . . . . Prevented . | . . . . . . Kills | -11 -10 -10 -9 -8 -8 ------- Run | Scr Mat Min Mat Mat Sto Combat Hostiles Destroyed 39 | 1 2 6 15 12 3 Melee 1 | . . . . 1 . Guns 11 | 1 2 . 5 1 2 AOE 23 | . . 6 9 8 . Classes Destroyed 9 | 1 2 2 4 . . Worker 5 | . . 1 2 1 1 Builder 2 | . . . 2 . . Tunneler 2 | . 1 1 . . . Hauler 1 | . . . 1 . . Recycler 2 | . 2 . . . . Watcher 2 | . . . 2 . . Swarmer 21 | . . 6 7 8 . Grunt 11 | 1 2 . 4 1 3 Sentry 7 | . . . 4 3 . Best Kill Streak 9 | 1 3 8 7 9 2 Combat Bots Only 8 | 1 2 6 6 8 1 Max Kills in Single Turn 4 | 1 1 4 3 4 1 Gunslinging . | . . . . . . Exploded 3 | . . 2 2 3 . Melee 1 | . . . . 1 . Uniques/NPCs Destroyed . | . . . . . . Combat | -11 -10 -10 -9 -8 -8 -------- Run | Scr Mat Min Mat Mat Sto Damage Taken 3505 | 32 500 89 619 778 1487 Core 851 | . 232 7 59 93 460 Absorbed by Shields . | . . . . . . Core Remaining (%) 63 | 100 . 4 85 . . Volleys Fired 104 | 3 33 5 38 9 16 Largest 3 | 2 2 1 3 2 3 Hottest 113 | 40 85 33 66 90 113 Shots Fired 154 | 6 53 5 53 13 24 Gun 126 | 6 53 . 39 4 24 Cannon . | . . . . . . Launcher 28 | . . 5 14 9 . Special . | . . . . . . Kinetic 107 | 6 44 . 39 2 16 Thermal 9 | . 9 . . . . Explosive 28 | . . 5 14 9 . Electromagnetic 10 | . . . . 2 8 Robot Hit Streak 10 | 6 10 1 6 8 8 Robot Miss Streak 4 | . 4 2 4 1 4 Penetration Max . | . . . . . . Secondary Targets . | . . . . . . Shots Hit Robots 133 | 6 32 1 40 23 31 Core Hits 93 | 2 13 10 40 18 10 Critical Hits . | . . . . . . Critical Kills . | . . . . . . Critical Parts Destroyed . | . . . . . . Melee Attacks 58 | . . . 21 21 16 Impact 53 | . . . 16 21 16 Slashing . | . . . . . . Piercing . | . . . . . . Sneak Attacks 7 | . . . 7 . . Combat Hostiles . | . . . . . . Follow-up Attacks . | . . . . . . Damage Inflicted 3983 | 68 315 597 1446 1010 547 Guns 974 | 68 315 . 368 46 177 Cannons . | . . . . . . Explosions 2111 | . . 597 925 589 . Melee 897 | . . . 153 375 369 Ramming 1 | . . . . . 1 Kinetic 794 | 68 225 . 368 12 121 Thermal 90 | . 90 . . . . Explosive 2111 | . . 597 925 589 . Electromagnetic 90 | . . . . 34 56 Impact 897 | . . . 153 375 369 Slashing . | . . . . . . Piercing . | . . . . . . Highest Corruption . | . . . . . . Average Corruption . | . . . . . . Corruption Purged . | . . . . . . Overload Shots . | . . . . . . Overflow Damage 175 | . . 22 40 82 31 Projectiles . | . . . . . . Explosions 94 | . . 22 11 61 . Melee 81 | . . . 29 21 31 Knockbacks 4 | . . . 1 2 1 Impact 3 | . . . 1 1 1 Kinetic . | . . . . . . Secondary 1 | . . . . 1 . Self-Inflicted Damage 118 | . . 36 82 . . Shots 4 | . . 1 3 . . Rammed 2 | . . . . . 2 Targets Rammed 2 | . . . . . 2 Kicked . | . . . . . . Crushed . | . . . . . . Highest Temperature 216 | 6 216 12 18 . 10 Average Temperature 49 | 6 64 8 7 . 4 Received Heat Transfer 1119 | 18 279 . 192 198 432 Siege Activations . | . . . . . . Robots Corrupted . | . . . . . . Combat Hostiles . | . . . . . . Parts Fried 8 | . . . 3 3 2 Impact Corruptions 8 | . . . 2 3 3 Robots Melted . | . . . . . . Combat Hostiles . | . . . . . . Parts Melted . | . . . . . . Heat Transferred 222 | . 222 . . . . Parts Sabotaged . | . . . . . . Parts Stolen . | . . . . . . Parts Stripped . | . . . . . . Power Chain Reactions . | . . . . . . Missiles Intercepted . | . . . . . . Alert | -11 -10 -10 -9 -8 -8 ------- Run | Scr Mat Min Mat Mat Sto Peak Influence 518 | 20 65 195 432 518 158 Average Influence 183 | 2 35 127 192 349 130 Maximum Alert Level 2 | . . . 2 2 . Low Security (%) 66 | 100 100 100 48 27 100 Level 1 21 | . . . 49 14 . Level 2 11 | . . . 1 58 . Level 3 . | . . . . . . Level 4 . | . . . . . . Level 5 . | . . . . . . High Security . | . . . . . . Max Security . | . . . . . . Squads Dispatched 2 | . . . 1 . 1 Investigation . | . . . . . . Extermination . | . . . . . . Reinforcement 2 | . . . 1 . 1 Assault . | . . . . . . Garrison . | . . . . . . Intercept . | . . . . . . Construction Impeded . | . . . . . . Haulers Reinforced . | . . . . . . Stealth | -11 -10 -10 -9 -8 -8 --------- Run | Scr Mat Min Mat Mat Sto Distress Signals 4 | . . 1 1 . 2 Communications Jammed . | . . . . . . Distress Signals . | . . . . . . Times Spotted 62 | 1 3 6 22 12 18 Peak Tracking Total 10 | 1 3 3 6 4 10 Tactical Retreats 3 | . . . . 1 2 Traps | -11 -10 -10 -9 -8 -8 ------- Run | Scr Mat Min Mat Mat Sto Traps Triggered 1 | . . . 1 . . Indirectly . | . . . . . . Trap Hack Attempts . | . . . . . . Triggered . | . . . . . . Disarmed . | . . . . . . Reprogrammed . | . . . . . . Reused . | . . . . . . Traps Extracted . | . . . . . . Installed . | . . . . . . Triggered . | . . . . . . Machines | -11 -10 -10 -9 -8 -8 ---------- Run | Scr Mat Min Mat Mat Sto Machines Disabled 8 | . . 1 6 1 . Max in Single Turn 1 | . . 1 1 1 . Machines Sabotaged . | . . . . . . Garrisons Compromised . | . . . . . . Overloaded Fab Kills . | . . . . . . Fab Network Shutdowns . | . . . . . . Hacking | -11 -10 -10 -9 -8 -8 --------- Run | Scr Mat Min Mat Mat Sto Machines Accessed 3 | . . . . 2 1 Terminals 3 | . . . . 2 1 Fabricators . | . . . . . . Repair Stations . | . . . . . . Recycling Units . | . . . . . . Scanalyzers . | . . . . . . Garrison Access . | . . . . . . Total Hacks 8 | . . . . 7 1 Successful 6 | . . . . 5 1 Failed 2 | . . . . 2 . Catastrophic . | . . . . . . Database Lockouts . | . . . . . . Manual . | . . . . . . Terminals 8 | . . . . 7 1 Fabricators . | . . . . . . Repair Stations . | . . . . . . Recycling Units . | . . . . . . Scanalyzers . | . . . . . . Garrison Access . | . . . . . . Terminal Hacks 6 | . . . . 5 1 Record 2 | . . . . 2 . Open Door 1 | . . . . . 1 Alert Level 1 | . . . . 1 . Locate Traps 1 | . . . . 1 . Zone Layout 1 | . . . . 1 . Fabricator Hacks . | . . . . . . Repair Station Hacks . | . . . . . . Recycling Unit Hacks . | . . . . . . Scanalyzer . | . . . . . . Garrison Access Hacks . | . . . . . . Unauthorized Hacks . | . . . . . . Terminals . | . . . . . . Fabricators . | . . . . . . Repair Stations . | . . . . . . Recycling Units . | . . . . . . Scanalyzers . | . . . . . . Garrison Access . | . . . . . . Data Cores Recovered . | . . . . . . Used . | . . . . . . Hacking Detections 2 | . . . . 2 . Full Trace Events . | . . . . . . Feedback Events . | . . . . . . Feedback Blocked . | . . . . . . Robot Schematics Acquired . | . . . . . . Robots Built . | . . . . . . Matter . | . . . . . . Time . | . . . . . . Total Robot Build Rating . | . . . . . . Part Schematics Acquired . | . . . . . . Parts Built . | . . . . . . Matter . | . . . . . . Time . | . . . . . . Total Part Build Rating . | . . . . . . Parts Repaired . | . . . . . . Time . | . . . . . . Parts Recycled . | . . . . . . Recycled Matter . | . . . . . . Retrieved Matter . | . . . . . . Retrieved Components . | . . . . . . Parts Scanalyzed . | . . . . . . Part Schematics Acquired . | . . . . . . Parts Damaged . | . . . . . . Bothacking | -11 -10 -10 -9 -8 -8 ------------ Run | Scr Mat Min Mat Mat Sto Used RIF Installer . | . . . . . . Robots Hacked 4 | . . . 4 . . Non-combat 4 | . . . 4 . . Combat . | . . . . . . Robot Hacks Applied 5 | . . . 5 . . parse_system 3 | . . . 3 . . no_distress 2 | . . . 2 . . Relay Couplers Released . | . . . . . . Robots Rewired . | . . . . . . Allies Hacked . | . . . . . . Hacks Repelled . | . . . . . . Allies | -11 -10 -10 -9 -8 -8 -------- Run | Scr Mat Min Mat Mat Sto Total Allies . | . . . . . . Largest Group . | . . . . . . Highest-Rated Group . | . . . . . . Highest-Rated Ally . | . . . . . . Total Orders . | . . . . . . Ally Attacks . | . . . . . . Total Damage . | . . . . . . Kills . | . . . . . . Allies Corrupted . | . . . . . . Allies Melted . | . . . . . . Intel | -11 -10 -10 -9 -8 -8 ------- Run | Scr Mat Min Mat Mat Sto Robot Analysis Total . | . . . . . . Derelict Logs Recovered 1 | . . 1 . . . Drone Launches 3 | . . . . . 3 Drone Recoveries . | . . . . . . Exploration | -11 -10 -10 -9 -8 -8 ------------- Run | Scr Mat Min Mat Mat Sto Turns Passed 2179 | 63 165 377 840 403 331 Spaces Moved 1108 | 60 66 243 437 169 133 Core 20 | 17 2 . . . 1 Treads 594 | . . . 294 169 131 Legs 421 | . 35 243 143 . . Wheels 73 | 43 29 . . . 1 Hover . | . . . . . . Flight . | . . . . . . Fastest Speed 50 | 50 50 150 120 160 100 Average Speed 145 | 71 106 150 147 160 162 Slowest Speed 500 | 80 150 150 160 160 500 Overloaded Moves . | . . . . . . Propulsion Burnouts . | . . . . . . Robots Hopped . | . . . . . . Cave-ins Triggered . | . . . . . . Exploration Rate (%) 31 | 8 12 77 48 22 24 Regions Visited 5 Branch Regions 2 Pre-discovered Areas 1 | . . 1 . . . Known Exits Taken . | . . . . . . Unknown Exits Taken 5 | 1 1 1 1 1 . Scrap Searched 1 | . . 1 . . . Spaces Dug . | . . . . . . Terrain Destroyed 220 | . . 43 110 67 . Melee . | . . . . . . Projectile . | . . . . . . AOE 220 | . . 43 110 67 . Actions | -11 -10 -10 -9 -8 -8 --------- Run | Scr Mat Min Mat Mat Sto Total 1423 | 71 114 251 549 248 190 Wait 37 | . 5 . 3 20 9 Move 1103 | 59 65 242 436 168 133 Hop . | . . . . . . Pick Up 29 | 2 4 1 12 6 4 Fast Attach 23 | 6 5 . 8 3 1 Attach 20 | . 1 2 6 4 7 Detach 10 | 1 1 1 4 3 . Swap 16 | . . . 8 6 2 Drop 21 | . . . 13 8 . Fire 104 | 3 33 5 38 9 16 Melee 58 | . . . 21 21 16 Ram 2 | . . . . . 2 Kick . | . . . . . . Crush . | . . . . . . Escape Stasis . | . . . . . . Rewire . | . . . . . . Trap . | . . . . . . Miscellaneous . | . . . . . . Route ------- -11/Scrapyard -10/Materials -10/Mines -9/Materials -8/Materials -8/Storage History --------- Turn | Location | Event 2 | -11/Scrapyard | Met Revision 17 47 | -11/Scrapyard | Discovered new exit (range 8) 64 | -11/Scrapyard | Entered Materials 128 | -10/Materials | Core integrity fell below 50% 138 | -10/Materials | Core integrity fell below 20% 147 | -10/Materials | Discovered new exit (range 14) 150 | -10/Materials | Lost 4 parts (1p2n1w) 229 | -10/Materials | Entered Mines 257 | -10/Mines | Received a Rocket Launcher from a helpful Derelict 567 | -10/Mines | Learned location of Mines (-9) 592 | -10/Mines | Discovered new exit (range 9) 606 | -10/Mines | Entered Materials 606 | -9/Materials | Evolved 2 slots: Propulsion x1, Weapon x1 681 | -9/Materials | Build established: Mutant 1073 | -9/Materials | Build established: Scavenger-Mutant 1376 | -9/Materials | Discovered new exit (range 9) 1404 | -9/Materials | Build established: Mutant 1446 | -9/Materials | Entered another Materials area 1446 | -8/Materials | Evolved 2 slots: Utility x1, Weapon x1 1596 | -8/Materials | Destroyed 8 combat bots 1657 | -8/Materials | Discovered new exit (range 13) 1849 | -8/Materials | Entered Storage 1880 | -8/Storage | Lost 3 parts (1n1u1w) 2157 | -8/Storage | Core integrity fell below 50% 2176 | -8/Storage | Core integrity fell below 20% 2180 | -8/Storage | Destroyed by S-10 Pest with Light Assault Rifle Last Messages --------------- 02164_ Drone released from Drone Bay. You have a new controllable ally. Review and give out orders from the Allies menu (F6). 02165_ Drone released from Drone Bay. Move into an ally to swap places with them. 02166_ Drone released from Drone Bay. 02166_ K-01 Serf collects debris. 02167_ Lgt. Ion Engine destroyed. 02171_ K-01 Serf collects debris. 02173_ Great Maul destroyed. 02173_ Wheel destroyed. 02175_ Drone Bay destroyed. 02175_ R-06 Scavenger collects Aluminum Leg. 02176_ Slammed into Y-45 Defender. Ramming works as a last resort when unarmed or blocked, but can have serious negative consequences. 02177_ Drone destroyed. 02178_ K-01 Serf collects debris. 02179_ Slammed into Y-45 Defender. 02179_ W-25 Informer sends out distress signal. Map ----- +----------------------------------------------------+ | ?????????########### #??????# #???????? | | ?????????# ######## #???????? | | ?????????# #???????? | | ?????????# ##########???????? | | ?????????####+###### #????????????????? | | ???????????# T#??## ##??####??????????? | | ???????????## ###???# #?? ???????????? | | ???????????#! #????# [ #? ???????????? | | ???????????#! #????# # """ "???????????? | | ???????????#! !#????# # """ ""??????????? | | ???????????#! !#????# + """ ""??????????? | | ???????????#####????# # #???????? | | ????????????????????# # #???????? | | ????????????????????# #? #???????? | | ??????????##????????# #??########???????? | | ??????????# ???????# #?????????????????? | | ??????????# ??????# #?????????????????? | | ??????????# ??????# #?????????????????? | | ??????????# ?????# #?????????????????? | | ??????????? ?????# u #?????????????????? | | ????????????? ????#u #?????????????????? | | ??????????#+###+##### ########+########?? | | ??????????# a u ? | | ??????????+ ? | | ??????????# s u ?? | | ??????????### n s@Y k #####????? | | ????????????# b g #????????? | | ????????????# s s%n +????????? | | ????????????# ##/#####%##### #####????????? | | ????????????# # ???# #???# #####????????? | | ????????????#?# "??##+#####/# #????????? | | ??????????????# T#?# # #????????? | | ??????????????# "#?# # #????????? | | ??????????????# #?# """""" # #????????? | | ??????????????# #?# "????" # #????????? | | ??????????????# ?# "????" + #????????? | | ??????????????##/##?# """""" # #????????? | | ???????????????# ???# # #????????? | | ???????????????? ???# # ???????? | | ???????????????? ???# # ###??????? | | ????????????????#???########## #????????? | | ?????????????????????????????# #????????? | | ?????????????????????????????# #????????? | | ?????????????????????????????# #????????? | | ?????????????????????????????? #????????? | | ?????????????????????????????? +????????? | | ?????????????????????????????? #????????? | | ?????????????????????????????? +????????? | | ?????????????????????????????? #????????? | | ?????????????????????????????? #????????? | +----------------------------------------------------+ Best States ------------- Heat Dissipation 45 Energy Generation 14 Energy Capacity 280 Matter Stores 300 Matter Capacity 400 Sight Range 16 Terrain Scan Density 10 Additional Mass Support 9 Armor Coverage 150 Evasion (%) 50 Recoil Reduction 3 Item Schematics ----------------- None Robot Schematics ------------------ None Fabricated ------------ Nothing Alien Tech Used ----------------- None Achievements -------------- Close Call Challenges ------------ None Game ------ Seed TransportHackingDiverter Manual? 0 Play Time 00:42:56 Cumulative 5.2 hours Start 2020.05.11 @ 10:45:04 End 2020.05.11 @ 11:35:03 Sessions 1 Manual Loads 0 Difficulty Rogue Special Mode None Game No. 3 Rogue 3 Adventurer 0 Explorer 0 Win Type - Total 0 Types 0/0/0/0/0/0/0 Lore% 1 Gallery% 12 Achievement% 8 Wizard Run 0 Options --------- ASCII 0 Keyboard 1 Movement Numpad Keybinds 0 Fullscreen 1 Font 18/SmallcapsGlow Map View 76x50 Tactical HUD 1 Map Filters NONE Filters NONE Steam 1 RUN: 373cd147-bae3-40bc-9214-2c93f8453809